fUST/lending_fUST_20251122
["ID","MTS","AMOUNT","RATE_DAILY","PERIOD"]
[394589196,1763743748410,-1025.7,0.00016227,2]
[394589197,1763743748434,-1025.7,0.00016227,2]
[394589198,1763743748456,-1025.7,0.00016227,2]
[394589199,1763743748476,-1025.7,0.00016227,2]
[394589200,1763743748497,-1025.7,0.00016227,2]
[394589201,1763743748517,-1025.7,0.00016227,2]
[394589202,1763743748541,-1025.7,0.00016227,2]
[394589203,1763743748563,-1025.7,0.00016227,2]
[394589204,1763743748585,-1025.7,0.00016227,2]
[394589205,1763743748607,-1025.7,0.00016227,2]
[394589206,1763743748630,-1025.7,0.00016227,2]
[394589207,1763743748651,-1025.7,0.00016227,2]
[394589208,1763743748672,-1025.7,0.00016227,2]
[394589209,1763743748694,-1025.7,0.00016227,2]
[394589210,1763743748719,-1025.7,0.00016227,2]
[394589211,1763743748743,-1025.7,0.00016227,2]
[394589212,1763743748765,-1025.7,0.00016227,2]
[394589213,1763743748788,-1025.7,0.00016227,2]
[394589214,1763743748810,-1025.7,0.00016227,2]
[394589215,1763743748831,-1025.80775364,0.00016227,2]
[394589216,1763743748851,-159.07343894,0.00016273,2]
[394589217,1763743748872,-500.0,0.00016273,2]
[394589218,1763743748893,-500.0,0.00016273,2]
[394589219,1763743748914,-500.5006746,0.00016273,2]
[394589220,1763743748935,-151.0,0.000163,2]
[394589221,1763743748957,-151.0,0.000163,2]
[394589222,1763743748977,-151.0,0.000163,2]
[394589223,1763743748999,-280.785537,0.00016438,2]
[394589224,1763743749021,-258.9119044,0.00016821,2]
[394589225,1763743749044,-1000.0,0.00016821,2]
[394589226,1763743749067,-250.0,0.00016974,2]
[394589227,1763743749088,-250.0,0.00016974,2]
[394589228,1763743749110,-250.0,0.00016974,2]
[394589229,1763743749134,-250.0,0.00016974,2]
[394589230,1763743749156,-250.0,0.00016974,2]
[394589231,1763743749184,-250.0,0.00016974,2]
[394589232,1763743749206,-250.0,0.00016974,2]
[394589233,1763743749227,-250.0,0.00016974,2]
[394589234,1763743749251,-250.0,0.00016974,2]
[394589235,1763743749274,-250.0,0.00016974,2]
[394589236,1763743749297,-250.0,0.00016974,2]
[394589237,1763743749319,-162.2269615,0.00017004,2]
[394589238,1763743749339,-1500.0,0.00017368,2]
[394589239,1763743749359,-414.0,0.00017403,2]
[394589240,1763743752221,269.554116,0.00016438,2]
[394589241,1763743769653,546.35857348,0.00017384,2]
[394589242,1763743791205,546.35857348,0.00017384,2]
[394589243,1763743799432,162.2269615,0.00017004,2]
[394589244,1763743813064,1397.35857348,0.00017384,2]
[394589245,1763743815091,250.0,0.00016947,2]
[394589246,1763743815696,250.0,0.00016947,2]
[394589247,1763743816456,250.0,0.00016947,2]
[394589248,1763743817072,250.0,0.00016947,2]
[394589249,1763743818215,250.0,0.00016947,2]
[394589250,1763743818952,250.0,0.00016947,2]
[394589251,1763743819582,250.0,0.00016947,2]
[394589252,1763743820362,250.0,0.00016947,2]
[394589253,1763743820881,250.0,0.00016947,2]
[394589254,1763743821549,360.07452808,0.00016947,2]
[394589255,1763743825016,523.27714024,0.0001746,2]
[394589256,1763743825196,1132.60512975,0.00015068,2]
[394589539,1763743834702,1397.35857348,0.00017384,2]
[394589564,1763743837848,-546.35857348,0.0001756,2]
[394589566,1763743837858,-851.0,0.0001756,2]
[394589568,1763743837868,-150.0,0.00017649,2]
[394589570,1763743837877,-546.35857348,0.00017737,2]
[394589572,1763743837886,-546.35857348,0.00017916,2]
[394589573,1763743837896,-2700.0,0.00018082,2]
[394589575,1763743837906,-150.0,0.00018114,2]
[394589578,1763743837916,-269.554116,0.00018431,2]
[394589580,1763743837926,-153.0,0.00018751,2]
[394589582,1763743837936,-153.0,0.00018751,2]
[394589584,1763743837945,-153.0,0.00018751,2]
[394589585,1763743837954,-198.89562584,0.00018956,2]
[394589586,1763743837963,-500.0,0.00018956,2]
[394589587,1763743837972,-500.0,0.00018956,2]
[394589588,1763743837981,-203.79110802,0.00018956,2]
[394589589,1763743837990,-500.0,0.00018956,2]
[394589590,1763743837999,-500.0,0.00018956,2]
[394589591,1763743838009,-338.91974774,0.00018956,2]
[394589592,1763743838018,-500.0,0.00018956,2]
[394589593,1763743838028,-500.0,0.00018956,2]
[394589594,1763743838037,-500.0,0.00018956,2]
[394589595,1763743838046,-500.0,0.00018956,2]
[394589596,1763743838055,-10433.76368196,0.00018957,2]
[394589786,1763743840011,-4233.76347368,0.00018957,2]
[394589788,1763743840024,-1227.21692308,0.00018957,2]
[394589794,1763743840068,-903.91792986,0.00018957,2]
[394589836,1763743845231,-1051.8287137,0.00018768,2]
[394589837,1763743845241,-8430.72746405,0.00018957,2]
[394589842,1763743846091,-1194.0359751,0.00018957,2]
[394589843,1763743857410,414.0,0.00017403,2]
[394589844,1763743859852,162.2269615,0.00017004,2]
[394589845,1763743860340,132690.34604367,0.000127,2]
[394589853,1763744836170,-244.75107191,0.00010122,2]
[394589854,1763744836192,-244.75107191,0.00010224,2]
[394589855,1763744836212,-244.75107191,0.00010327,2]
[394589856,1763744836235,-150.0,0.00010379,2]
[394589857,1763744836259,-462.22176178,0.00010436,2]
[394589858,1763744836279,-1564.3162843,0.00011123,2]
[394589859,1763744836304,-203.7208947,0.00011699,2]
[394589860,1763744836326,-177.0,0.00012379,2]
[394589861,1763744836350,-209.40437684,0.00012692,2]
[394589862,1763744836371,-241.158,0.00012696,2]
[394589863,1763744836393,-1200.0,0.00012697,2]
[394589864,1763744836414,-300.0,0.00012697,2]
[394589865,1763744836445,-500.0,0.00012698,2]
[394589866,1763744836470,-500.0,0.00012698,2]
[394589867,1763744836495,-500.0,0.00012698,2]
[394589868,1763744836522,-500.0,0.00012698,2]
[394589869,1763744836548,-322.75425381,0.00012698,2]
[394589870,1763744836580,-500.0,0.00012698,2]
[394589871,1763744836603,-492.65377562,0.00012699,2]
[394589872,1763744836624,-500.0,0.00012699,2]
[394589873,1763744836647,-187.24382342,0.00012699,2]
[394589874,1763744836675,-500.0,0.00012699,2]
[394589875,1763744836697,-500.0,0.00012699,2]
[394589876,1763744836719,-500.0,0.00012699,2]
[394589877,1763744836741,-500.0,0.00012699,2]
[394589878,1763744836762,-500.0,0.00012699,2]
[394589879,1763744836782,-194.85764293,0.00012699,2]
[394589880,1763744836805,-362352.22121218,0.000127,2]
[394589881,1763744844299,190.2852156,0.00025279,120]
[394589882,1763744853090,-191.44206224,9.921e-05,2]
[394589883,1763744853112,-244.75107191,0.00010021,2]
[394589884,1763744853136,-142208.43841044,0.000127,2]
[394589922,1763745032078,-191.44206224,9.724e-05,2]
[394589923,1763745032089,-191.44206224,9.822e-05,2]
[394589924,1763745032099,-300.0,0.00012598,2]
[394589925,1763745032109,-286.40035005,0.00012599,2]
[394589926,1763745032119,-319.31153478,0.00012599,2]
[394589963,1763745038116,-180.68846522,0.00012599,2]
[394589965,1763745038127,-500.0,0.00012599,2]
[394589967,1763745038138,-500.0,0.00012599,2]
[394589969,1763745038150,-231.07067639,0.00012599,2]
[394589971,1763745038160,-500.0,0.00012599,2]
[394589973,1763745038170,-313.63936153,0.00012599,2]
[394589975,1763745038179,-2000.23064069,0.000126,2]
[394590066,1763745039342,-41587.97836014,0.000126,2]
[394590068,1763745039353,-4119.26338749,0.000126,2]
[394590491,1763745044228,-3775.3260336,0.000126,2]
[394590689,1763745046261,-15849.40350495,0.00012474,2]
[394592533,1763745429741,150.0,0.00017555,30]
[394592534,1763745430132,150.0,0.00019151,30]
[394592536,1763745503376,150.0,0.00017444,30]
[394592537,1763745503786,150.0,0.00019029,30]
[394592554,1763745576339,150.0,0.00017393,30]
[394592555,1763745577261,150.0,0.00018974,30]
[394592556,1763745652329,150.0,0.00017555,30]
[394592557,1763745652699,150.0,0.00019151,30]
[394592558,1763745723721,150.0,0.00019103,30]
[394592559,1763745795049,150.0,0.00017404,30]
[394592560,1763745795461,150.0,0.00018986,30]
[394592561,1763745864640,150.0,0.00017473,30]
[394592564,1763745935185,150.0,0.00019075,30]
[394592576,1763746114853,307.82539795,0.00014,10]
[394592580,1763746156437,-311.11111114,9.606e-05,2]
[394592581,1763746156469,-150.0,9.654e-05,2]
[394592582,1763746156495,-311.11111114,9.703e-05,2]
[394592583,1763746156521,-189.6991325,0.00011341,2]
[394592584,1763746156550,-177.0,0.00011654,2]
[394592585,1763746156576,-300.0,0.00012223,2]
[394592586,1763746156604,-212.67437792,0.00012224,2]
[394592587,1763746156632,-200.48024504,0.00012224,2]
[394592588,1763746156659,-500.0,0.00012224,2]
[394592589,1763746156685,-561.74947348,0.00012224,2]
[394592590,1763746156714,-500.0,0.00012224,2]
[394592591,1763746156745,-500.0,0.00012224,2]
[394592592,1763746156774,-500.0,0.00012224,2]
[394592593,1763746156804,-372.58056961,0.00012224,2]
[394592594,1763746156829,-1135.0,0.00012225,2]
[394592595,1763746156854,-50000.0,0.00012225,2]
[394592596,1763746156884,-93018.19138536,0.00012227,2]
[394592640,1763746232755,-191.44206224,8.507e-05,2]
[394592641,1763746232767,-311.11111114,9.415e-05,2]
[394592642,1763746232776,-311.11111114,9.51e-05,2]
[394592643,1763746232786,-163.99786798,0.00012127,2]
[394592644,1763746232795,-300.0,0.00012226,2]
[394592645,1763746232804,-2659.35976925,0.00012227,2]
[394592646,1763746232815,-619.84912104,0.00012227,2]
[394592704,1763746238722,-209.40437684,0.00012219,2]
[394592706,1763746238733,-113.05837768,0.00012227,2]
[394592709,1763746238746,-836.55525642,0.00012227,2]
[394592711,1763746238759,-703.52979223,0.00012227,2]
[394592718,1763746238837,-641.24123794,0.00012227,2]
[394592720,1763746238849,-474.65,0.00012227,2]
[394592774,1763746247666,-9749.66359598,0.00012104,2]
[394592775,1763746247677,-8500.0,0.00012104,2]
[394592777,1763746330520,150.0,0.00017049,30]
[394592782,1763746550400,150.0,0.00017385,30]
[394592805,1763747179761,151.0,0.00011775,7]
[394592982,1763747354148,-962.75337759,9.228e-05,2]
[394592983,1763747354168,-150.0,9.275e-05,2]
[394592984,1763747354191,-962.75337759,9.321e-05,2]
[394592985,1763747354210,-3949.2937762,0.00010806,2]
[394592986,1763747354229,-1639.61491274,0.00011127,2]
[394592987,1763747373148,-2089.88599166,0.00011016,2]
[394592988,1763747373169,-2089.88599166,0.00011127,2]
[394592989,1763747373200,-177.0,0.00011275,2]
[394592990,1763747373221,-300.0,0.00011327,2]
[394592991,1763747373242,-922.30702335,0.00011328,2]
[394592992,1763747373261,-287.129,0.00011982,2]
[394592993,1763747373281,-183.731,0.00011982,2]
[394592994,1763747373303,-500.0,0.00012126,2]
[394592995,1763747373326,-593.22463143,0.00012126,2]
[394592996,1763747373350,-155344.38213585,0.00012127,2]
[394593083,1763747438636,-169.0,0.00011884,2]
[394593084,1763747438646,-1539.38,0.00011885,2]
[394593527,1763747446334,-1166.36,0.00011885,2]
[394601513,1763747922556,151.0,0.00011417,7]
[394601623,1763747963560,-159.28501079,8.172e-05,2]
[394601624,1763747968982,159.28501079,8.172e-05,2]
[394601625,1763747976729,159.28501079,8.172e-05,2]
[394601626,1763747991417,159.28501079,8.172e-05,2]
[394601627,1763748000401,159.28501079,8.172e-05,2]
[394601628,1763748015889,159.28501079,8.172e-05,2]
[394601629,1763748023680,159.28501079,8.172e-05,2]
[394601630,1763748038939,159.28501079,8.172e-05,2]
[394601632,1763748046758,159.28501079,8.172e-05,2]
[394601633,1763748052446,151.0,0.00011087,7]
[394601634,1763748055269,150.0,8.214e-05,2]
[394601635,1763748063107,150.0,8.214e-05,2]
[394601637,1763748071314,150.0,8.214e-05,2]
[394601638,1763748078955,150.0,8.214e-05,2]
[394601639,1763748087031,150.0,8.214e-05,2]
[394601640,1763748088351,201.14,0.00025278,120]
[394601641,1763748094984,150.0,8.214e-05,2]
[394601644,1763748109933,150.0,8.214e-05,2]
[394601645,1763748117952,150.0,8.214e-05,2]
[394601646,1763748132905,150.0,8.214e-05,2]
[394601647,1763748140678,150.0,8.214e-05,2]
[394601648,1763748157050,150.0,8.214e-05,2]
[394601649,1763748163893,150.0,8.214e-05,2]
[394601650,1763748179314,150.0,8.214e-05,2]
[394601651,1763748187045,150.0,8.214e-05,2]
[394601652,1763748210866,150.0,8.214e-05,2]
[394601653,1763748218618,150.0,8.214e-05,2]
[394601654,1763748233768,150.0,8.214e-05,2]
[394601655,1763748257378,150.0,8.235e-05,2]
[394601656,1763748279518,150.0,8.235e-05,2]
[394601657,1763748302231,150.0,8.235e-05,2]
[394601658,1763748324259,150.0,8.235e-05,2]
[394601659,1763748346895,150.0,8.235e-05,2]
[394601661,1763748370046,150.0,8.235e-05,2]
[394601662,1763748391972,150.0,8.235e-05,2]
[394601663,1763748415307,150.0,8.235e-05,2]
[394601664,1763748437571,150.0,8.235e-05,2]
[394601665,1763748445669,150.0,8.235e-05,2]
[394601667,1763748465442,151.0,0.00012085,7]
[394601668,1763748469683,150.0,8.235e-05,2]
[394601669,1763748491723,150.0,8.235e-05,2]
[394601670,1763748514763,150.0,8.235e-05,2]
[394601671,1763748536684,150.0,8.235e-05,2]
[394601673,1763748559250,150.0,8.235e-05,2]
[394601674,1763748582545,150.0,8.235e-05,2]
[394601675,1763748604400,150.0,8.235e-05,2]
[394601677,1763748626506,150.0,8.235e-05,2]
[394601696,1763748631756,-150.0,8.318e-05,2]
[394601697,1763748631766,-150.0,8.36e-05,2]
[394601698,1763748631775,-170.00039233,8.507e-05,2]
[394601699,1763748631784,-394.24,9.99e-05,2]
[394601700,1763748631794,-394.24,9.99e-05,2]
[394601701,1763748631804,-177.0,0.0001036,2]
[394601702,1763748631813,-1091.88183745,0.00010959,2]
[394601703,1763748631836,-359.87921299,0.00010959,2]
[394601736,1763748637758,-1854.74021166,0.00010959,2]
[394601737,1763748637769,-160.0,0.00011756,2]
[394601738,1763748637778,-300.0,0.00011876,2]
[394601739,1763748637788,-1200.0,0.00011876,2]
[394601740,1763748637799,-364.80236348,0.00011876,2]
[394601741,1763748637808,-500.0,0.00011876,2]
[394601742,1763748637818,-500.0,0.00011876,2]
[394601743,1763748637827,-500.0,0.00011876,2]
[394601744,1763748637838,-500.0,0.00011876,2]
[394601745,1763748637847,-263.77509355,0.00011876,2]
[394601746,1763748637856,-500.0,0.00011876,2]
[394601747,1763748637865,-500.0,0.00011876,2]
[394601748,1763748637876,-500.0,0.00011876,2]
[394601749,1763748637886,-500.0,0.00011876,2]
[394601750,1763748637895,-500.0,0.00011876,2]
[394601751,1763748637905,-500.0,0.00011876,2]
[394601752,1763748637915,-500.0,0.00011876,2]
[394601753,1763748637924,-203.19973321,0.00011876,2]
[394601754,1763748637933,-500.0,0.00011876,2]
[394601755,1763748637942,-500.0,0.00011876,2]
[394601756,1763748637951,-500.0,0.00011876,2]
[394601757,1763748637960,-500.0,0.00011876,2]
[394601758,1763748637970,-304.11956246,0.00011876,2]
[394601759,1763748637979,-500.0,0.00011876,2]
[394601760,1763748637988,-500.0,0.00011876,2]
[394601761,1763748637998,-500.0,0.00011876,2]
[394601762,1763748638008,-500.0,0.00011876,2]
[394601764,1763748638017,-500.0,0.00011876,2]
[394601766,1763748638026,-500.0,0.00011876,2]
[394601768,1763748638035,-500.0,0.00011876,2]
[394601770,1763748638045,-500.0,0.00011876,2]
[394601772,1763748638054,-500.0,0.00011876,2]
[394601774,1763748638063,-500.0,0.00011876,2]
[394601776,1763748638073,-500.0,0.00011876,2]
[394601778,1763748638082,-500.0,0.00011876,2]
[394601780,1763748638091,-500.0,0.00011876,2]
[394601782,1763748638101,-500.0,0.00011876,2]
[394601784,1763748638110,-500.0,0.00011876,2]
[394601786,1763748638119,-500.0,0.00011876,2]
[394601788,1763748638129,-500.0,0.00011876,2]
[394601790,1763748638138,-245.19766819,0.00011876,2]
[394601792,1763748638148,-500.0,0.00011876,2]
[394601794,1763748638158,-200.0,0.00011876,2]
[394601796,1763748638167,-500.0,0.00011876,2]
[394601798,1763748638176,-500.0,0.00011876,2]
[394601800,1763748638185,-500.0,0.00011876,2]
[394601802,1763748638195,-500.0,0.00011876,2]
[394601804,1763748638204,-500.0,0.00011876,2]
[394601806,1763748638213,-500.0,0.00011876,2]
[394601808,1763748638223,-500.0,0.00011876,2]
[394601810,1763748638233,-500.0,0.00011876,2]
[394601812,1763748638242,-500.0,0.00011876,2]
[394601814,1763748638251,-500.0,0.00011876,2]
[394601816,1763748638262,-500.0,0.00011876,2]
[394601818,1763748638271,-500.0,0.00011876,2]
[394601820,1763748638282,-500.0,0.00011876,2]
[394601822,1763748638292,-500.0,0.00011876,2]
[394601824,1763748638302,-500.0,0.00011876,2]
[394601826,1763748638311,-500.0,0.00011876,2]
[394601828,1763748638321,-500.0,0.00011876,2]
[394601830,1763748638331,-500.0,0.00011876,2]
[394601832,1763748638340,-500.0,0.00011876,2]
[394601834,1763748638350,-500.0,0.00011876,2]
[394601836,1763748638360,-395.65,0.00011881,2]
[394601838,1763748638370,-183.731,0.00011881,2]
[394601840,1763748638379,-500.0,0.00011881,2]
[394601842,1763748638388,-209.40437684,0.00011897,2]
[394601844,1763748638397,-6592.58532277,0.00011904,2]
[394602120,1763748644938,-396.205,0.00011785,2]
[394602121,1763748644950,-447.54,0.00011785,2]
[394602143,1763748645957,-11877.44020648,0.00011785,2]
[394602144,1763748645968,-28186.38156614,0.00011785,2]
[394602145,1763748645980,-1456.36088424,0.00011785,2]
[394602146,1763748645992,-7043.63911576,0.00011785,2]
[394602147,1763748646066,-580.99999998,0.00011785,2]
[394602212,1763749564137,-154.0739206,0.00010632,2]
[394602213,1763749564165,-154.0739206,0.00010639,2]
[394602214,1763749564194,-150.0,0.00010685,2]
[394602215,1763749564221,-154.0739206,0.00010739,2]
[394602216,1763749564246,-154.07392059,0.00010807,2]
[394602217,1763749564271,-154.07392059,0.00010974,2]
[394602218,1763749564302,-209.40437684,0.00011559,2]
[394602219,1763749564329,-686.0,0.0001156,2]
[394602220,1763749564357,-300.0,0.0001156,2]
[394602221,1763749564385,-50000.0,0.00011561,2]
[394602222,1763749564411,-500.0,0.00011561,2]
[394602223,1763749564439,-500.0,0.00011561,2]
[394602224,1763749564471,-500.0,0.00011561,2]
[394602225,1763749564498,-638.35529646,0.00011561,2]
[394602226,1763749564534,-500.0,0.00011561,2]
[394602227,1763749564566,-500.0,0.00011561,2]
[394602228,1763749564599,-500.0,0.00011561,2]
[394602229,1763749564633,-500.0,0.00011561,2]
[394602230,1763749564666,-200.0,0.00011561,2]
[394602231,1763749564699,-500.0,0.00011561,2]
[394602232,1763749564732,-500.0,0.00011561,2]
[394602233,1763749564764,-500.0,0.00011561,2]
[394602234,1763749564802,-500.0,0.00011561,2]
[394602235,1763749564835,-500.0,0.00011561,2]
[394602236,1763749564868,-500.0,0.00011561,2]
[394602237,1763749564901,-500.0,0.00011561,2]
[394602238,1763749564934,-500.0,0.00011561,2]
[394602239,1763749564968,-500.0,0.00011561,2]
[394602240,1763749565001,-500.0,0.00011561,2]
[394602241,1763749565039,-500.0,0.00011561,2]
[394602242,1763749565074,-500.0,0.00011561,2]
[394602243,1763749565111,-500.0,0.00011561,2]
[394602244,1763749565144,-500.0,0.00011561,2]
[394602245,1763749565182,-500.0,0.00011561,2]
[394602246,1763749565216,-500.0,0.00011561,2]
[394602247,1763749565249,-500.0,0.00011561,2]
[394602248,1763749565286,-500.0,0.00011561,2]
[394602249,1763749565325,-500.0,0.00011561,2]
[394602250,1763749565361,-500.0,0.00011561,2]
[394602251,1763749565396,-500.0,0.00011561,2]
[394602252,1763749565432,-500.0,0.00011561,2]
[394602253,1763749565467,-500.0,0.00011561,2]
[394602254,1763749565501,-500.0,0.00011561,2]
[394602255,1763749565540,-500.0,0.00011561,2]
[394602256,1763749565574,-500.0,0.00011561,2]
[394602257,1763749565609,-500.0,0.00011561,2]
[394602258,1763749565646,-500.0,0.00011561,2]
[394602259,1763749565681,-500.0,0.00011561,2]
[394602260,1763749565719,-500.0,0.00011561,2]
[394602261,1763749565755,-500.0,0.00011561,2]
[394602262,1763749565794,-500.0,0.00011561,2]
[394602263,1763749565827,-500.0,0.00011561,2]
[394602264,1763749565860,-500.0,0.00011561,2]
[394602265,1763749565894,-500.0,0.00011561,2]
[394602266,1763749565928,-500.0,0.00011561,2]
[394602267,1763749565962,-500.0,0.00011561,2]
[394602268,1763749565996,-500.0,0.00011561,2]
[394602269,1763749566030,-523.07444204,0.00011561,2]
[394602270,1763749566068,-500.0,0.00011561,2]
[394602271,1763749566106,-500.0,0.00011561,2]
[394602272,1763749566292,-500.0,0.00011561,2]
[394602273,1763749566325,-500.0,0.00011561,2]
[394602274,1763749566358,-500.0,0.00011561,2]
[394602275,1763749566391,-500.0,0.00011561,2]
[394602276,1763749566425,-500.0,0.00011561,2]
[394602277,1763749566457,-500.0,0.00011561,2]
[394602278,1763749566487,-500.0,0.00011561,2]
[394602279,1763749566520,-500.0,0.00011561,2]
[394602280,1763749566554,-500.0,0.00011561,2]
[394602281,1763749566587,-250.00000001,0.00011561,2]
[394602282,1763749566620,-500.0,0.00011561,2]
[394602283,1763749566652,-500.0,0.00011561,2]
[394602284,1763749566686,-500.0,0.00011561,2]
[394602285,1763749566718,-500.0,0.00011561,2]
[394602286,1763749566751,-500.0,0.00011561,2]
[394602287,1763749566777,-255.36165444,0.00011565,2]
[394602288,1763749566807,-500.0,0.00011565,2]
[394602289,1763749566835,-384.64256548,0.00011565,2]
[394602290,1763749566863,-500.0,0.00011565,2]
[394602291,1763749566891,-500.0,0.00011565,2]
[394602292,1763749566920,-500.0,0.00011565,2]
[394602293,1763749566948,-500.0,0.00011565,2]
[394602294,1763749566977,-500.0,0.00011565,2]
[394602295,1763749567004,-500.0,0.00011565,2]
[394602296,1763749567035,-500.0,0.00011565,2]
[394602297,1763749567063,-500.0,0.00011565,2]
[394602298,1763749567095,-415.76755573,0.00011565,2]
[394602299,1763749567123,-500.0,0.00011565,2]
[394602300,1763749569465,-890000.0,0.00011566,2]
[394602301,1763749570056,5000.0,0.00011566,2]
[394602324,1763749832086,-2089.8859917,0.00011099,2]
[394602325,1763749832095,-150.0,0.00011155,2]
[394602326,1763749832104,-2089.8859917,0.00011211,2]
[394602327,1763749832113,-2089.8859917,0.00011324,2]
[394602328,1763749832122,-300.0,0.00011565,2]
[394602329,1763749832132,-1135.0,0.00011565,2]
[394602330,1763749832141,-3503.14385937,0.00011566,2]
[394602352,1763749837993,-503.62555076,0.00011565,2]
[394602353,1763749838003,-500.0,0.00011565,2]
[394602354,1763749838012,-1090.93014453,0.00011566,2]
[394602355,1763749838021,-1199.938891,0.00011566,2]
[394602356,1763749838032,-353.13058887,0.00011807,2]
[394602357,1763749838041,-151.0,0.00012,2]
[394602358,1763749838051,-151.0,0.00012,2]
[394602359,1763749838062,-151.94186312,0.00012,2]
[394602360,1763749838072,-152.00138222,0.00012,2]
[394602361,1763749838081,-153.82138668,0.00012,2]
[394602362,1763749838091,-500.0,0.00012083,2]
[394602363,1763749838101,-500.0,0.00012083,2]
[394602364,1763749838111,-242.55547148,0.00012083,2]
[394602365,1763749838121,-500.0,0.00012083,2]
[394602366,1763749838131,-179.39386935,0.00012083,2]
[394602367,1763749838140,-500.0,0.00012083,2]
[394602368,1763749838150,-500.0,0.00012083,2]
[394602369,1763749838160,-500.0,0.00012083,2]
[394602370,1763749838173,-500.0,0.00012083,2]
[394602371,1763749838182,-500.0,0.00012083,2]
[394602372,1763749838192,-409.56213105,0.00012083,2]
[394602373,1763749838203,-50000.0,0.00012084,2]
[394602374,1763749838213,-166.0,0.00012085,2]
[394602375,1763749838223,-166.0,0.00012085,2]
[394602376,1763749838232,-171.57410587,0.00012085,2]
[394602377,1763749838243,-166.0,0.00012085,2]
[394602378,1763749838253,-166.0,0.00012085,2]
[394602379,1763749838263,-166.0,0.00012085,2]
[394602380,1763749838273,-166.0,0.00012085,2]
[394602381,1763749838286,-166.0,0.00012085,2]
[394602382,1763749838295,-166.0,0.00012085,2]
[394602383,1763749838306,-151.0,0.000121,2]
[394602384,1763749838315,-7579.0709791,0.00012102,2]
[394602385,1763749838325,-151.0,0.000122,2]
[394602386,1763749838335,-151.0,0.000122,2]
[394602387,1763749838345,-151.0,0.000122,2]
[394602388,1763749838355,-151.0,0.000123,2]
[394602389,1763749838365,-209.40437684,0.00012321,2]
[394602390,1763749838375,-1755.46,0.00012329,2]
[394602391,1763749838385,-1462.88,0.00012329,2]
[394602392,1763749838395,-1219.07,0.00012329,2]
[394602393,1763749838405,-1015.89,0.00012329,2]
[394602394,1763749838415,-846.58,0.00012329,2]
[394602395,1763749838426,-705.48,0.00012329,2]
[394602396,1763749838436,-587.9,0.00012329,2]
[394602397,1763749838446,-489.92,0.00012329,2]
[394602398,1763749838456,-408.26,0.00012329,2]
[394602399,1763749838466,-340.22,0.00012329,2]
[394602400,1763749838475,-500.0,0.00012329,2]
[394602401,1763749838485,-340.22,0.00012329,2]
[394602402,1763749838495,-226.81,0.00012329,2]
[394602403,1763749838504,-189.01,0.00012329,2]
[394602404,1763749838514,-157.51,0.00012329,2]
[394602405,1763749838523,-787.57,0.00012329,2]
[394602406,1763749838536,-151.0,0.000126,2]
[394602407,1763749838546,-500.0,0.00012603,2]
[394602408,1763749838556,-152.75342558,0.00012603,2]
[394602409,1763749838566,-201.26442786,0.00012603,2]
[394602410,1763749838575,-151.45815104,0.00012603,2]
[394602411,1763749838585,-152.44518229,0.00012603,2]
[394602412,1763749838595,-151.98929535,0.00012603,2]
[394602413,1763749838763,-153.19973971,0.00012603,2]
[394602414,1763749838773,-155.62906489,0.00012603,2]